[Event "*** SCC Grand Prix: Titled Tuesday Blitz"]
[Site "Chess.com"]
[Date "2020.06.02"]
[Round "5"]
[White "louis198"]
[Black "Reinaldovera"]
[Result "1-0"]
[WhiteElo "2460"]
[BlackElo "2235"]
[TimeControl "180+1"]
[EndTime "10:59:24 PDT"]
[Termination "louis198 won on time"]

1. d4 {[%clk 0:03:00.9]} 1... d5 {[%clk 0:02:58.9]} 2. Bf4 {[%clk 0:03:01.2]}
2... Nf6 {[%clk 0:02:58]} 3. e3 {[%clk 0:03:01.5]} 3... e6 {[%clk 0:02:58.2]} 4.
Nf3 {[%clk 0:03:01.3]} 4... Bd6 {[%clk 0:02:58.5]} 5. Bg3 {[%clk 0:03:00.7]}
5... O-O {[%clk 0:02:58.8]} 6. Bd3 {[%clk 0:03:00.2]} 6... c5 {[%clk 0:02:59.3]}
7. c3 {[%clk 0:03:00.2]} 7... Qc7 {[%clk 0:02:59.8]} 8. Ne5 {[%clk 0:02:32.3]}
8... Nbd7 {[%clk 0:02:29]} 9. f4 {[%clk 0:02:18.4]} 9... Ne4 {[%clk 0:02:28.5]}
10. Bxe4 {[%clk 0:02:10.5]} 10... dxe4 {[%clk 0:02:24.2]} 11. Nd2 {[%clk
0:02:10.6]} 11... cxd4 {[%clk 0:02:15.3]} 12. cxd4 {[%clk 0:02:09.1]} 12... f6
{[%clk 0:02:07.1]} 13. Nxd7 {[%clk 0:02:05.2]} 13... Bxd7 {[%clk 0:02:06]} 14.
Nxe4 {[%clk 0:02:00.9]} 14... Bb4+ {[%clk 0:02:02.7]} 15. Kf2 {[%clk 0:02:00.7]}
15... Bc6 {[%clk 0:02:02.2]} 16. Nc3 {[%clk 0:01:57.9]} 16... Qa5 {[%clk
0:01:48.8]} 17. Qb3 {[%clk 0:01:50.7]} 17... Bxc3 {[%clk 0:01:33.9]} 18. Qxc3
{[%clk 0:01:49.7]} 18... Qd5 {[%clk 0:01:32.4]} 19. Rhg1 {[%clk 0:01:45.1]}
19... Rac8 {[%clk 0:01:31.8]} 20. Qa3 {[%clk 0:01:23.9]} 20... Qe4 {[%clk
0:01:24.8]} 21. Rac1 {[%clk 0:01:23.1]} 21... Bd5 {[%clk 0:01:23.1]} 22. Rc3
{[%clk 0:01:11.2]} 22... Rc6 {[%clk 0:00:55.3]} 23. Rxc6 {[%clk 0:01:08.5]}
23... Bxc6 {[%clk 0:00:53.3]} 24. Qc3 {[%clk 0:01:05.3]} 24... Rc8 {[%clk
0:00:51.1]} 25. Rc1 {[%clk 0:00:23.8]} 25... Qxg2+ {[%clk 0:00:49.1]} 26. Ke1
{[%clk 0:00:23.8]} 26... Kf7 {[%clk 0:00:37.2]} 27. Qd2 {[%clk 0:00:22]} 27...
Qh1+ {[%clk 0:00:35.1]} 28. Kf2 {[%clk 0:00:20.6]} 28... Qg2+ {[%clk 0:00:26.5]}
29. Ke1 {[%clk 0:00:20.6]} 29... Qg1+ {[%clk 0:00:25.9]} 30. Ke2 {[%clk
0:00:20.4]} 30... Bf3+ {[%clk 0:00:24.9]} 31. Kxf3 {[%clk 0:00:20.5]} 31... Qxc1
{[%clk 0:00:25.2]} 32. Qb4 {[%clk 0:00:20.4]} 32... Qc6+ {[%clk 0:00:24.7]} 33.
Kf2 {[%clk 0:00:19.7]} 33... f5 {[%clk 0:00:24]} 34. Bh4 {[%clk 0:00:18.8]}
34... Qd7 {[%clk 0:00:20.7]} 35. a3 {[%clk 0:00:18.1]} 35... Rc2+ {[%clk
0:00:19.3]} 36. Kg3 {[%clk 0:00:18.4]} 36... b6 {[%clk 0:00:18.8]} 37. Kh3
{[%clk 0:00:18.4]} 37... Qb7 {[%clk 0:00:17.6]} 38. Bg3 {[%clk 0:00:14.3]} 38...
h6 {[%clk 0:00:15.5]} 39. Qd6 {[%clk 0:00:13.7]} 39... g5 {[%clk 0:00:13.6]} 40.
fxg5 {[%clk 0:00:13.2]} 40... hxg5 {[%clk 0:00:12.4]} 41. d5 {[%clk 0:00:11.9]}
41... Qxd5 {[%clk 0:00:11.7]} 42. Qxd5 {[%clk 0:00:12.3]} 42... exd5 {[%clk
0:00:10.7]} 43. Be5 {[%clk 0:00:13.2]} 43... Re2 {[%clk 0:00:10.5]} 44. Bd4
{[%clk 0:00:13.4]} 44... Kg6 {[%clk 0:00:10.8]} 45. Kg3 {[%clk 0:00:13.1]} 45...
a5 {[%clk 0:00:09.9]} 46. h3 {[%clk 0:00:13.6]} 46... a4 {[%clk 0:00:09.8]} 47.
Kf3 {[%clk 0:00:13.7]} 47... Rc2 {[%clk 0:00:07.2]} 48. Kg3 {[%clk 0:00:12.7]}
48... b5 {[%clk 0:00:06.9]} 49. Kf3 {[%clk 0:00:13]} 49... Rc4 {[%clk
0:00:06.7]} 50. Bc3 {[%clk 0:00:12.9]} 50... f4 {[%clk 0:00:05.1]} 51. exf4
{[%clk 0:00:12.4]} 51... Rxf4+ {[%clk 0:00:04.2]} 52. Kg3 {[%clk 0:00:12.7]}
52... Kf5 {[%clk 0:00:04.4]} 53. Bd2 {[%clk 0:00:12.8]} 53... Re4 {[%clk
0:00:02.7]} 54. Kf3 {[%clk 0:00:12.5]} 54... d4 {[%clk 0:00:03]} 55. Bxg5 {[%clk
0:00:11.2]} 1-0

[Event "*** SCC Grand Prix: Titled Tuesday Blitz"]
[Site "Chess.com"]
[Date "2020.06.02"]
[Round "5"]
[White "Sharpchess22"]
[Black "Poghosyan_Suren"]
[Result "1-0"]
[WhiteElo "2743"]
[BlackElo "2438"]
[TimeControl "180+1"]
[EndTime "10:59:25 PDT"]
[Termination "Sharpchess22 won by resignation"]

1. d4 {[%clk 0:03:00.9]} 1... Nf6 {[%clk 0:02:48.1]} 2. Nf3 {[%clk 0:02:59.5]}
2... b6 {[%clk 0:02:47.4]} 3. c4 {[%clk 0:02:57.1]} 3... Bb7 {[%clk 0:02:44.8]}
4. g3 {[%clk 0:02:54.8]} 4... g6 {[%clk 0:02:41.4]} 5. Bg2 {[%clk 0:02:54.3]}
5... Bg7 {[%clk 0:02:38.3]} 6. O-O {[%clk 0:02:54.1]} 6... O-O {[%clk
0:02:21.5]} 7. Re1 {[%clk 0:02:53.7]} 7... e6 {[%clk 0:02:11.2]} 8. Bg5 {[%clk
0:02:49]} 8... d5 {[%clk 0:01:51.1]} 9. Qc1 {[%clk 0:02:43.7]} 9... dxc4 {[%clk
0:01:46.7]} 10. Qxc4 {[%clk 0:02:41]} 10... Nc6 {[%clk 0:01:45.2]} 11. Nc3
{[%clk 0:02:27.5]} 11... h6 {[%clk 0:01:40.4]} 12. Bxf6 {[%clk 0:02:19.1]} 12...
Qxf6 {[%clk 0:01:41.3]} 13. Rad1 {[%clk 0:02:15.8]} 13... Rad8 {[%clk
0:01:32.2]} 14. e3 {[%clk 0:01:57.3]} 14... Na5 {[%clk 0:01:21.6]} 15. Qe2
{[%clk 0:01:56.4]} 15... Qe7 {[%clk 0:01:13.3]} 16. Rc1 {[%clk 0:01:55.1]} 16...
c5 {[%clk 0:01:05.1]} 17. dxc5 {[%clk 0:01:54.3]} 17... Qxc5 {[%clk 0:01:06]}
18. Nb5 {[%clk 0:01:50.8]} 18... Qh5 {[%clk 0:00:57.5]} 19. Nxa7 {[%clk
0:01:46.2]} 19... Rd7 {[%clk 0:00:44.5]} 20. Nb5 {[%clk 0:01:44.8]} 20... Rfd8
{[%clk 0:00:41.4]} 21. b3 {[%clk 0:01:42.8]} 21... Ba6 {[%clk 0:00:37]} 22. Bf1
{[%clk 0:01:36.8]} 22... Rd5 {[%clk 0:00:31.7]} 23. a4 {[%clk 0:01:33.2]} 23...
Nxb3 {[%clk 0:00:30.4]} 24. Rcd1 {[%clk 0:01:27.8]} 24... Nc5 {[%clk 0:00:29.3]}
25. Rxd5 {[%clk 0:01:17.6]} 25... Qxd5 {[%clk 0:00:30.2]} 26. Nfd4 {[%clk
0:00:47.4]} 26... Bxd4 {[%clk 0:00:23.5]} 27. exd4 {[%clk 0:00:44.1]} 27... Nxa4
{[%clk 0:00:23.6]} 28. Rc1 {[%clk 0:00:42.6]} 28... Bxb5 {[%clk 0:00:22.1]} 29.
Qxb5 {[%clk 0:00:42.3]} 29... Qxd4 {[%clk 0:00:21.3]} 30. Rc4 {[%clk 0:00:41]}
30... Qb2 {[%clk 0:00:12.6]} 31. Qxa4 {[%clk 0:00:39.2]} 31... b5 {[%clk
0:00:13]} 32. Qa5 {[%clk 0:00:39.5]} 32... Rd1 {[%clk 0:00:12.9]} 33. Rc8+
{[%clk 0:00:37.4]} 33... Kg7 {[%clk 0:00:13.3]} 34. Qc3+ {[%clk 0:00:36.4]}
34... Qxc3 {[%clk 0:00:12.7]} 35. Rxc3 {[%clk 0:00:37.3]} 35... b4 {[%clk
0:00:13.3]} 36. Rb3 {[%clk 0:00:37.5]} 36... Rd4 {[%clk 0:00:14.2]} 37. Kg2
{[%clk 0:00:37.7]} 37... e5 {[%clk 0:00:14.6]} 38. Be2 {[%clk 0:00:37.9]} 38...
f5 {[%clk 0:00:15]} 39. Kf3 {[%clk 0:00:38.4]} 39... Kf6 {[%clk 0:00:13.4]} 40.
Ke3 {[%clk 0:00:38.7]} 40... g5 {[%clk 0:00:13.5]} 41. f3 {[%clk 0:00:38]} 41...
Ke7 {[%clk 0:00:13.4]} 42. Bd3 {[%clk 0:00:36.7]} 42... Ke6 {[%clk 0:00:13.3]}
43. Ke2 {[%clk 0:00:34.5]} 43... e4 {[%clk 0:00:11.6]} 44. fxe4 {[%clk
0:00:34.9]} 44... fxe4 {[%clk 0:00:12.5]} 45. Bc2 {[%clk 0:00:35.4]} 45... Ke5
{[%clk 0:00:10.8]} 46. Rb1 {[%clk 0:00:35.5]} 46... Rc4 {[%clk 0:00:09.9]} 47.
Bb3 {[%clk 0:00:34.9]} 47... Rc3 {[%clk 0:00:10.1]} 48. Rb2 {[%clk 0:00:35.3]}
48... Kd4 {[%clk 0:00:09.8]} 49. Bg8 {[%clk 0:00:35]} 49... Re3+ {[%clk
0:00:08.4]} 50. Kf2 {[%clk 0:00:35.3]} 50... Rf3+ {[%clk 0:00:04.5]} 51. Kg2
{[%clk 0:00:35.6]} 51... Kc3 {[%clk 0:00:04.6]} 52. Rb3+ {[%clk 0:00:34.6]}
52... Kc2 {[%clk 0:00:05.5]} 53. Rxf3 {[%clk 0:00:27.9]} 53... exf3+ {[%clk
0:00:06.4]} 54. Kxf3 {[%clk 0:00:28.7]} 54... b3 {[%clk 0:00:06.5]} 55. Kg4
{[%clk 0:00:29]} 55... b2 {[%clk 0:00:06.5]} 56. Kh5 {[%clk 0:00:25.9]} 56...
Kc3 {[%clk 0:00:04.3]} 57. Bh7 {[%clk 0:00:25.9]} 57... Kd2 {[%clk 0:00:02.8]}
58. Kxh6 {[%clk 0:00:25.8]} 58... Ke3 {[%clk 0:00:02.6]} 59. Kxg5 {[%clk
0:00:26]} 1-0

[Event "*** SCC Grand Prix: Titled Tuesday Blitz"]
[Site "Chess.com"]
[Date "2020.06.02"]
[Round "5"]
[White "gahryman"]
[Black "hellokostya"]
[Result "1/2-1/2"]
[WhiteElo "2682"]
[BlackElo "2439"]
[TimeControl "180+1"]
[EndTime "10:59:25 PDT"]
[Termination "Game drawn - insufficient material"]

1. e4 {[%clk 0:03:00.9]} 1... Nc6 {[%clk 0:02:53.6]} 2. Nf3 {[%clk 0:03:00.5]}
2... d6 {[%clk 0:02:51.5]} 3. d4 {[%clk 0:03:00.3]} 3... Nf6 {[%clk 0:02:50.5]}
4. Nc3 {[%clk 0:02:59.2]} 4... g6 {[%clk 0:02:49.7]} 5. Be2 {[%clk 0:02:57.1]}
5... Bg7 {[%clk 0:02:49.1]} 6. O-O {[%clk 0:02:55.9]} 6... O-O {[%clk
0:02:45.3]} 7. d5 {[%clk 0:02:56.1]} 7... Nb8 {[%clk 0:02:43.8]} 8. h3 {[%clk
0:02:54.9]} 8... Nbd7 {[%clk 0:02:42.3]} 9. Re1 {[%clk 0:02:53.8]} 9... Nc5
{[%clk 0:02:38.9]} 10. Bf1 {[%clk 0:02:53.9]} 10... e6 {[%clk 0:02:33.4]} 11.
dxe6 {[%clk 0:02:43.8]} 11... fxe6 {[%clk 0:02:28.2]} 12. e5 {[%clk 0:02:37.1]}
12... dxe5 {[%clk 0:02:22.5]} 13. Qxd8 {[%clk 0:02:30.9]} 13... Rxd8 {[%clk
0:02:20.1]} 14. Nxe5 {[%clk 0:02:31.8]} 14... Nd5 {[%clk 0:02:14.6]} 15. Bg5
{[%clk 0:02:21.4]} 15... Re8 {[%clk 0:01:56.5]} 16. Nb5 {[%clk 0:02:04.3]} 16...
a6 {[%clk 0:01:44.5]} 17. Nd4 {[%clk 0:02:03.9]} 17... b6 {[%clk 0:01:16.6]} 18.
Ndc6 {[%clk 0:01:47.7]} 18... Nd7 {[%clk 0:01:10.8]} 19. Rad1 {[%clk 0:01:23.2]}
19... Nxe5 {[%clk 0:01:08.8]} 20. Nxe5 {[%clk 0:01:24.1]} 20... Bb7 {[%clk
0:01:07.7]} 21. c4 {[%clk 0:01:17.5]} 21... Nf6 {[%clk 0:00:58.7]} 22. g3 {[%clk
0:01:04.3]} 22... Ne4 {[%clk 0:00:53.1]} 23. Bf4 {[%clk 0:00:53.4]} 23... g5
{[%clk 0:00:50.3]} 24. Bg2 {[%clk 0:00:53.5]} 24... gxf4 {[%clk 0:00:42.6]} 25.
Bxe4 {[%clk 0:00:52.9]} 25... Bxe4 {[%clk 0:00:36.1]} 26. Rxe4 {[%clk
0:00:53.8]} 26... fxg3 {[%clk 0:00:35.1]} 27. Rg4 {[%clk 0:00:34.2]} 27... Rad8
{[%clk 0:00:31]} 28. Re1 {[%clk 0:00:26]} 28... gxf2+ {[%clk 0:00:19.3]} 29.
Kxf2 {[%clk 0:00:26.9]} 29... Rf8+ {[%clk 0:00:18.9]} 30. Ke3 {[%clk 0:00:13.9]}
30... Rf5 {[%clk 0:00:18.8]} 31. Nf3 {[%clk 0:00:13.3]} 31... h6 {[%clk
0:00:12.1]} 32. b3 {[%clk 0:00:13.6]} 32... Kh7 {[%clk 0:00:12.1]} 33. Re4
{[%clk 0:00:14.5]} 33... Rdf8 {[%clk 0:00:11.2]} 34. Nd2 {[%clk 0:00:13.7]}
34... Be5 {[%clk 0:00:05.3]} 35. Kd3 {[%clk 0:00:13.1]} 35... Rd8+ {[%clk
0:00:04.7]} 36. Kc2 {[%clk 0:00:12.8]} 36... Bf4 {[%clk 0:00:04.7]} 37. Nf3
{[%clk 0:00:11]} 37... e5 {[%clk 0:00:04.8]} 38. Nxe5 {[%clk 0:00:10.4]} 38...
Bxe5 {[%clk 0:00:03.8]} 39. Rxe5 {[%clk 0:00:11.3]} 39... Rf2+ {[%clk
0:00:04.3]} 40. R1e2 {[%clk 0:00:11.6]} 40... Rxe2+ {[%clk 0:00:04.6]} 41. Rxe2
{[%clk 0:00:12.5]} 41... Kg6 {[%clk 0:00:05]} 42. Re6+ {[%clk 0:00:12.5]} 42...
Kg5 {[%clk 0:00:05.1]} 43. Rc6 {[%clk 0:00:13.4]} 43... Rd7 {[%clk 0:00:05]} 44.
b4 {[%clk 0:00:12.9]} 44... h5 {[%clk 0:00:05.5]} 45. Re6 {[%clk 0:00:10.1]}
45... Kh4 {[%clk 0:00:05.5]} 46. Re3 {[%clk 0:00:10.5]} 46... c5 {[%clk
0:00:04.5]} 47. b5 {[%clk 0:00:09.8]} 47... axb5 {[%clk 0:00:04.3]} 48. cxb5
{[%clk 0:00:10.7]} 48... Rd4 {[%clk 0:00:04.7]} 49. a3 {[%clk 0:00:10.6]} 49...
Ra4 {[%clk 0:00:04.4]} 50. Kb3 {[%clk 0:00:09.3]} 50... Rf4 {[%clk 0:00:05.3]}
51. Re6 {[%clk 0:00:09.2]} 51... Rf3+ {[%clk 0:00:04.7]} 52. Kc4 {[%clk
0:00:09.3]} 52... Kxh3 {[%clk 0:00:05.6]} 53. Rxb6 {[%clk 0:00:08.9]} 53... Rxa3
{[%clk 0:00:05.5]} 54. Rh6 {[%clk 0:00:09.8]} 54... h4 {[%clk 0:00:05.7]} 55.
Kxc5 {[%clk 0:00:10.7]} 55... Rb3 {[%clk 0:00:05.9]} 56. b6 {[%clk 0:00:11.6]}
56... Kg3 {[%clk 0:00:05.6]} 57. Kc6 {[%clk 0:00:12.2]} 57... h3 {[%clk
0:00:05.9]} 58. b7 {[%clk 0:00:12.7]} 58... Kg2 {[%clk 0:00:05.4]} 59. Kc7
{[%clk 0:00:12.7]} 59... Rxb7+ {[%clk 0:00:05.6]} 60. Kxb7 {[%clk 0:00:12.3]}
60... h2 {[%clk 0:00:06.5]} 61. Rxh2+ {[%clk 0:00:12.2]} 61... Kxh2 {[%clk
0:00:07.2]} 1/2-1/2

[Event "*** SCC Grand Prix: Titled Tuesday Blitz"]
[Site "Chess.com"]
[Date "2020.06.02"]
[Round "5"]
[White "DDTerziev04"]
[Black "H16"]
[Result "0-1"]
[WhiteElo "2240"]
[BlackElo "2509"]
[TimeControl "180+1"]
[EndTime "10:59:25 PDT"]
[Termination "H16 won by resignation"]

1. e4 {[%clk 0:03:00.9]} 1... c5 {[%clk 0:02:59.3]} 2. Nf3 {[%clk 0:02:59.3]}
2... d6 {[%clk 0:02:59.8]} 3. d4 {[%clk 0:02:58.7]} 3... cxd4 {[%clk 0:03:00.7]}
4. Qxd4 {[%clk 0:02:59.1]} 4... Nf6 {[%clk 0:03:01.6]} 5. Qe3 {[%clk 0:02:59.7]}
5... g6 {[%clk 0:03:00.1]} 6. h3 {[%clk 0:02:59.2]} 6... Bg7 {[%clk 0:03:00.4]}
7. Be2 {[%clk 0:02:59.7]} 7... Nc6 {[%clk 0:03:00.7]} 8. O-O {[%clk 0:02:58.9]}
8... O-O {[%clk 0:03:01.1]} 9. c4 {[%clk 0:02:59.1]} 9... Re8 {[%clk 0:02:01.5]}
10. Rd1 {[%clk 0:02:56.8]} 10... Bd7 {[%clk 0:01:54]} 11. Nc3 {[%clk 0:02:55.5]}
11... a6 {[%clk 0:01:54.4]} 12. Rb1 {[%clk 0:02:53.2]} 12... Qb8 {[%clk
0:01:45.7]} 13. b3 {[%clk 0:02:51.6]} 13... Be6 {[%clk 0:01:36.7]} 14. Bb2
{[%clk 0:02:51]} 14... Bc8 {[%clk 0:01:11.7]} 15. Na4 {[%clk 0:02:18.9]} 15...
Nd7 {[%clk 0:01:08.6]} 16. Bxg7 {[%clk 0:02:16.5]} 16... Kxg7 {[%clk 0:01:09.5]}
17. Nc3 {[%clk 0:02:16.8]} 17... Nf6 {[%clk 0:01:04.2]} 18. Rd2 {[%clk
0:02:13.7]} 18... Be6 {[%clk 0:00:48.4]} 19. Rbd1 {[%clk 0:02:09.1]} 19... Ne5
{[%clk 0:00:44.9]} 20. Nd5 {[%clk 0:02:05]} 20... Nxf3+ {[%clk 0:00:41.5]} 21.
Bxf3 {[%clk 0:02:03.6]} 21... Bxd5 {[%clk 0:00:41]} 22. exd5 {[%clk 0:01:44.5]}
22... Qc7 {[%clk 0:00:40.7]} 23. Be2 {[%clk 0:01:40]} 23... a5 {[%clk
0:00:39.4]} 24. a4 {[%clk 0:01:37.7]} 24... b6 {[%clk 0:00:37.6]} 25. Bd3 {[%clk
0:01:33.4]} 25... Qc5 {[%clk 0:00:37.7]} 26. Qf3 {[%clk 0:01:32.3]} 26... Ra7
{[%clk 0:00:36.1]} 27. Bc2 {[%clk 0:01:31.4]} 27... Nd7 {[%clk 0:00:36.1]} 28.
Re2 {[%clk 0:01:29.3]} 28... Qc7 {[%clk 0:00:27.9]} 29. Rde1 {[%clk 0:01:28.2]}
29... Nc5 {[%clk 0:00:27.9]} 30. Qc3+ {[%clk 0:01:27.1]} 30... Kg8 {[%clk
0:00:27.6]} 31. h4 {[%clk 0:01:26.4]} 31... e5 {[%clk 0:00:24.1]} 32. dxe6
{[%clk 0:01:22.9]} 32... Rxe6 {[%clk 0:00:24.4]} 33. h5 {[%clk 0:01:17.9]} 33...
Qe7 {[%clk 0:00:19.9]} 34. h6 {[%clk 0:01:09]} 34... Qf8 {[%clk 0:00:19.7]} 35.
Qh3 {[%clk 0:01:06]} 35... Rae7 {[%clk 0:00:19.3]} 36. Rxe6 {[%clk 0:01:03.8]}
36... Rxe6 {[%clk 0:00:20.2]} 37. Rxe6 {[%clk 0:01:03.4]} 37... fxe6 {[%clk
0:00:20]} 38. Qe3 {[%clk 0:01:00.8]} 38... Kf7 {[%clk 0:00:18.1]} 39. Qf4+
{[%clk 0:00:59.4]} 39... Ke7 {[%clk 0:00:18]} 40. Qg5+ {[%clk 0:00:59.2]} 40...
Qf6 {[%clk 0:00:18]} 41. Qxf6+ {[%clk 0:00:56.1]} 41... Kxf6 {[%clk 0:00:18.9]}
42. f3 {[%clk 0:00:55.2]} 42... Kg5 {[%clk 0:00:18.6]} 43. Kf2 {[%clk
0:00:52.3]} 43... Kxh6 {[%clk 0:00:18]} 44. Ke3 {[%clk 0:00:52]} 44... Kg5
{[%clk 0:00:18.1]} 45. g4 {[%clk 0:00:51.7]} 45... e5 {[%clk 0:00:17.5]} 46. Kf2
{[%clk 0:00:50.5]} 46... h5 {[%clk 0:00:17.8]} 47. gxh5 {[%clk 0:00:49.2]} 47...
gxh5 {[%clk 0:00:18.7]} 48. Kg3 {[%clk 0:00:49]} 48... Ne6 {[%clk 0:00:17.9]}
49. Bd1 {[%clk 0:00:46]} 49... Nd4 {[%clk 0:00:18]} 50. Kh3 {[%clk 0:00:45.1]}
50... Kf4 {[%clk 0:00:17.9]} 51. Kh4 {[%clk 0:00:44.6]} 51... Nxf3+ {[%clk
0:00:12.7]} 52. Kxh5 {[%clk 0:00:45]} 52... Nd4 {[%clk 0:00:12.9]} 53. Kg6
{[%clk 0:00:43.3]} 53... Ke3 {[%clk 0:00:07.4]} 54. Kf6 {[%clk 0:00:43.3]} 54...
Kd2 {[%clk 0:00:06.8]} 55. Bh5 {[%clk 0:00:42.1]} 55... e4 {[%clk 0:00:05]} 56.
Ke7 {[%clk 0:00:40.5]} 56... Kc3 {[%clk 0:00:04.7]} 57. Kxd6 {[%clk 0:00:39.4]}
57... Nxb3 {[%clk 0:00:05]} 58. Kc6 {[%clk 0:00:37.4]} 58... Kb4 {[%clk
0:00:05.9]} 59. Kxb6 {[%clk 0:00:37.1]} 59... Nc5 {[%clk 0:00:06.8]} 60. Bd1
{[%clk 0:00:30.9]} 60... e3 {[%clk 0:00:06.3]} 61. Kc6 {[%clk 0:00:27.4]} 61...
Kxc4 {[%clk 0:00:06]} 62. Kb6 {[%clk 0:00:26.5]} 62... Kb4 {[%clk 0:00:06]} 63.
Kc6 {[%clk 0:00:24.7]} 63... Nxa4 {[%clk 0:00:06.9]} 64. Kd5 {[%clk 0:00:23.2]}
64... Nc3+ {[%clk 0:00:06.8]} 0-1

[Event "*** SCC Grand Prix: Titled Tuesday Blitz"]
[Site "Chess.com"]
[Date "2020.06.02"]
[Round "5"]
[White "Nafania1"]
[Black "gui_borba"]
[Result "0-1"]
[WhiteElo "2427"]
[BlackElo "2322"]
[TimeControl "180+1"]
[EndTime "10:59:27 PDT"]
[Termination "gui_borba won by checkmate"]

1. e4 {[%clk 0:03:00.9]} 1... c6 {[%clk 0:03:00.1]} 2. d4 {[%clk 0:02:58.1]}
2... d5 {[%clk 0:03:01]} 3. exd5 {[%clk 0:02:57.5]} 3... cxd5 {[%clk 0:03:01.9]}
4. Bd3 {[%clk 0:02:57.4]} 4... Nc6 {[%clk 0:03:02.3]} 5. c3 {[%clk 0:02:57.8]}
5... Nf6 {[%clk 0:03:02.5]} 6. h3 {[%clk 0:02:54.1]} 6... g6 {[%clk 0:03:01]} 7.
Nf3 {[%clk 0:02:53.7]} 7... Bf5 {[%clk 0:03:01.4]} 8. Be2 {[%clk 0:02:51.1]}
8... Bg7 {[%clk 0:03:00.6]} 9. O-O {[%clk 0:02:51]} 9... O-O {[%clk 0:02:58.4]}
10. Bf4 {[%clk 0:02:50.9]} 10... Ne4 {[%clk 0:02:54.4]} 11. Nbd2 {[%clk
0:02:48.1]} 11... f6 {[%clk 0:02:53.2]} 12. Nxe4 {[%clk 0:02:40.8]} 12... Bxe4
{[%clk 0:02:51.8]} 13. Nd2 {[%clk 0:02:35.5]} 13... Bf5 {[%clk 0:02:51]} 14. Qb3
{[%clk 0:02:02.3]} 14... e5 {[%clk 0:02:50.1]} 15. Be3 {[%clk 0:01:49.4]} 15...
Rb8 {[%clk 0:02:41.3]} 16. dxe5 {[%clk 0:01:27]} 16... fxe5 {[%clk 0:02:39.3]}
17. Bf3 {[%clk 0:01:27.3]} 17... Be6 {[%clk 0:02:31.9]} 18. Rad1 {[%clk
0:01:21.3]} 18... Qd7 {[%clk 0:02:19.7]} 19. Bc5 {[%clk 0:01:20.9]} 19... Rf7
{[%clk 0:02:09.6]} 20. Bg4 {[%clk 0:00:54.8]} 20... Bxg4 {[%clk 0:01:54.4]} 21.
hxg4 {[%clk 0:00:55.1]} 21... Rd8 {[%clk 0:01:55.3]} 22. Nf3 {[%clk 0:00:45.5]}
22... e4 {[%clk 0:01:37.1]} 23. Ng5 {[%clk 0:00:45.2]} 23... Rf4 {[%clk
0:01:28.6]} 24. f3 {[%clk 0:00:36.6]} 24... exf3 {[%clk 0:01:15.3]} 25. Nxf3
{[%clk 0:00:36.7]} 25... Qf7 {[%clk 0:01:01.7]} 26. Ng5 {[%clk 0:00:34.1]} 26...
Rxf1+ {[%clk 0:01:00.5]} 27. Rxf1 {[%clk 0:00:33.6]} 27... Qe8 {[%clk
0:00:56.1]} 28. Qxb7 {[%clk 0:00:22.9]} 28... h6 {[%clk 0:00:39.2]} 29. Nf7
{[%clk 0:00:13.7]} 29... Rb8 {[%clk 0:00:34.6]} 30. Qc7 {[%clk 0:00:13.5]} 30...
Rc8 {[%clk 0:00:34.6]} 31. Qb7 {[%clk 0:00:12.7]} 31... Rb8 {[%clk 0:00:28.8]}
32. Nd6 {[%clk 0:00:12.9]} 32... Rxb7 {[%clk 0:00:27]} 33. Nxe8 {[%clk
0:00:13.2]} 33... Rxb2 {[%clk 0:00:27.7]} 34. Nxg7 {[%clk 0:00:13.3]} 34... Kxg7
{[%clk 0:00:28.6]} 35. c4 {[%clk 0:00:13.6]} 35... dxc4 {[%clk 0:00:26.4]} 36.
Rc1 {[%clk 0:00:13.3]} 36... Rxa2 {[%clk 0:00:20.9]} 37. Rxc4 {[%clk 0:00:13.4]}
37... Ra6 {[%clk 0:00:20.6]} 38. g3 {[%clk 0:00:12.4]} 38... Kf7 {[%clk
0:00:21]} 39. Rf4+ {[%clk 0:00:11.8]} 39... Ke6 {[%clk 0:00:21.3]} 40. Rf8
{[%clk 0:00:10.9]} 40... Ne5 {[%clk 0:00:20.4]} 41. g5 {[%clk 0:00:09.9]} 41...
hxg5 {[%clk 0:00:19.9]} 42. Kg2 {[%clk 0:00:08.5]} 42... Kd5 {[%clk 0:00:19.9]}
43. Be3 {[%clk 0:00:07.9]} 43... g4 {[%clk 0:00:18.7]} 44. Bf4 {[%clk 0:00:08]}
44... Ra2+ {[%clk 0:00:17.9]} 45. Kf1 {[%clk 0:00:08.2]} 45... Nf3 {[%clk
0:00:17.8]} 46. Rd8+ {[%clk 0:00:08.2]} 46... Ke4 {[%clk 0:00:17.8]} 47. Re8+
{[%clk 0:00:08.5]} 47... Kd3 {[%clk 0:00:17.7]} 48. Rd8+ {[%clk 0:00:08.8]}
48... Ke4 {[%clk 0:00:16.4]} 49. Re8+ {[%clk 0:00:09]} 49... Kf5 {[%clk
0:00:16.8]} 50. Rf8+ {[%clk 0:00:08.5]} 50... Ke6 {[%clk 0:00:17.3]} 51. Re8+
{[%clk 0:00:08.6]} 51... Kf7 {[%clk 0:00:17.1]} 52. Rb8 {[%clk 0:00:08.1]} 52...
a5 {[%clk 0:00:17.5]} 53. Rb7+ {[%clk 0:00:07.9]} 53... Ke6 {[%clk 0:00:17.5]}
54. Rb6+ {[%clk 0:00:08.2]} 54... Kf5 {[%clk 0:00:18.1]} 55. Rb5+ {[%clk
0:00:08.1]} 55... Ke4 {[%clk 0:00:18.7]} 56. Rb6 {[%clk 0:00:07.2]} 56... Ra1+
{[%clk 0:00:17.9]} 57. Ke2 {[%clk 0:00:07]} 57... Nd4+ {[%clk 0:00:16.4]} 58.
Kd2 {[%clk 0:00:06.4]} 58... Ra2+ {[%clk 0:00:16.7]} 59. Kc3 {[%clk 0:00:06.1]}
59... Rc2# {[%clk 0:00:15.6]} 0-1